fUSD/lending_fUSD_20250720
["ID","MTS","AMOUNT","RATE_DAILY","PERIOD"]
[373467078,1753017086000,-480.0,0.00019835,2]
[373467079,1753017086010,-480.0,0.00019835,2]
[373467080,1753017086019,-480.0,0.00019835,2]
[373467081,1753017086028,-480.0,0.00019835,2]
[373467082,1753017086038,-730.67,0.00019835,2]
[373467083,1753017086048,-920.27,0.00019835,2]
[373467084,1753017086059,-480.0,0.00019835,2]
[373467085,1753017086068,-559.71,0.00019835,2]
[373467086,1753017086077,-549.06,0.00019835,2]
[373467087,1753017086088,-480.0,0.00019835,2]
[373467088,1753017086101,-480.0,0.00019835,2]
[373467089,1753017086110,-627.11,0.00019835,2]
[373467090,1753017086120,-623.45,0.00019835,2]
[373467091,1753017086130,-623.29458356,0.00019835,2]
[373467092,1753017086140,-480.0,0.00019835,2]
[373467093,1753017086149,-480.0,0.00019835,2]
[373467094,1753017086159,-730.3,0.00019835,2]
[373467095,1753017086168,-480.0,0.00019835,2]
[373467096,1753017086177,-691.2,0.00019835,2]
[373467097,1753017086188,-184.989215,0.00019835,2]
[373467098,1753017086198,-185.537845,0.00019835,2]
[373467099,1753017086209,-553.59,0.00019835,2]
[373467100,1753017086220,-503.01,0.00019835,2]
[373467101,1753017086230,-480.0,0.00019835,2]
[373467102,1753017086240,-527.76,0.00019835,2]
[373467103,1753017086250,-587.03,0.00019835,2]
[373467104,1753017086262,-854.71,0.00019835,2]
[373467105,1753017086271,-633.77,0.00019835,2]
[373467106,1753017086280,-855.53,0.00019835,2]
[373467107,1753017086289,-261.28,0.00019835,2]
[373467108,1753017086298,-480.0,0.00019835,2]
[373467109,1753017086307,-480.0,0.00019835,2]
[373467110,1753017086317,-558.27776319,0.00019835,2]
[373467111,1753017086326,-480.0,0.00019835,2]
[373467112,1753017086335,-480.0,0.00019835,2]
[373467113,1753017086346,-863.86,0.00019835,2]
[373467114,1753017086355,-946.66,0.00019835,2]
[373467115,1753017086364,-480.0,0.00019835,2]
[373467116,1753017086374,-480.0,0.00019835,2]
[373467117,1753017086383,-480.0,0.00019835,2]
[373467118,1753017086396,-480.0,0.00019835,2]
[373467119,1753017086406,-480.0,0.00019835,2]
[373467120,1753017086415,-1039.01,0.00019835,2]
[373467121,1753017086425,-687.85,0.00019835,2]
[373467122,1753017086435,-480.0,0.00019835,2]
[373467123,1753017086444,-480.0,0.00019835,2]
[373467124,1753017086454,-480.0,0.00019835,2]
[373467125,1753017086466,-480.0,0.00019835,2]
[373467126,1753017086476,-480.0,0.00019835,2]
[373467127,1753017086486,-3553.23,0.00019835,2]
[373467128,1753017086496,-738.62,0.00019835,2]
[373467129,1753017086505,-480.0,0.00019835,2]
[373467130,1753017086516,-480.0,0.00019835,2]
[373467131,1753017086525,-518.78,0.00019835,2]
[373467132,1753017086536,-480.0,0.00019835,2]
[373467133,1753017086545,-480.0,0.00019835,2]
[373467134,1753017086555,-480.0,0.00019835,2]
[373467135,1753017086565,-1780.15,0.00019835,2]
[373467136,1753017086575,-480.0,0.00019835,2]
[373467137,1753017086584,-785.24,0.00019835,2]
[373467138,1753017086594,-480.0,0.00019835,2]
[373467139,1753017086603,-151.0,0.00019835,2]
[373467140,1753017086612,-480.0,0.00019835,2]
[373467141,1753017086621,-704.79,0.00019835,2]
[373467142,1753017086630,-480.0,0.00019835,2]
[373467143,1753017086640,-512.33,0.00019835,2]
[373467144,1753017086649,-619.75,0.00019835,2]
[373467145,1753017086659,-1397.47,0.00019835,2]
[373467146,1753017086669,-632.04,0.00019835,2]
[373467147,1753017086678,-480.0,0.00019835,2]
[373467148,1753017086688,-480.0,0.00019835,2]
[373467149,1753017086697,-480.0,0.00019835,2]
[373467150,1753017086706,-480.0,0.00019835,2]
[373467151,1753017086715,-480.0,0.00019835,2]
[373467152,1753017086724,-499.9,0.00019835,2]
[373467153,1753017086734,-480.0,0.00019835,2]
[373467154,1753017086744,-480.0,0.00019835,2]
[373467155,1753017086755,-151.0,0.00019835,2]
[373467156,1753017086767,-480.0,0.00019835,2]
[373467157,1753017086778,-561.14,0.00019835,2]
[373467158,1753017086789,-698.23,0.00019835,2]
[373467159,1753017086799,-151.0,0.00019835,2]
[373467160,1753017086810,-480.0,0.00019835,2]
[373467161,1753017086821,-966.01,0.00019835,2]
[373467162,1753017086831,-480.0,0.00019835,2]
[373467163,1753017086841,-480.0,0.00019835,2]
[373467164,1753017086851,-480.0,0.00019835,2]
[373467165,1753017086860,-2587.61,0.00019835,2]
[373467166,1753017086869,-508.38,0.00019835,2]
[373467167,1753017086879,-887.97,0.00019835,2]
[373467168,1753017086890,-480.0,0.00019835,2]
[373467169,1753017086899,-480.0,0.00019835,2]
[373467170,1753017086908,-527.84,0.00019835,2]
[373467171,1753017086918,-885.97,0.00019835,2]
[373467172,1753017086927,-460.0,0.00019835,2]
[373467173,1753017086937,-480.0,0.00019835,2]
[373467174,1753017086946,-151.0,0.00019835,2]
[373467175,1753017086956,-480.0,0.00019835,2]
[373467176,1753017086965,-480.0,0.00019835,2]
[373467177,1753017086975,-480.0,0.00019835,2]
[373467178,1753017086985,-649.01,0.00019835,2]
[373467179,1753017086994,-1167.69,0.00019835,2]
[373467180,1753017087004,-480.0,0.00019835,2]
[373467181,1753017087013,-234.82,0.00019835,2]
[373467182,1753017087023,-596.23,0.00019835,2]
[373467183,1753017087032,-151.0,0.00019835,2]
[373467184,1753017087041,-981.05,0.00019835,2]
[373467185,1753017087051,-480.0,0.00019835,2]
[373467186,1753017087060,-951.99,0.00019835,2]
[373467187,1753017087070,-381.42924091,0.00019835,2]
[373467188,1753017087080,-1569.89,0.00019835,2]
[373467189,1753017087089,-979.63,0.00019835,2]
[373467190,1753017087099,-480.0,0.00019835,2]
[373467191,1753017087108,-1103.5,0.00019835,2]
[373467192,1753017087117,-480.0,0.00019835,2]
[373467193,1753017087127,-480.0,0.00019835,2]
[373467194,1753017087136,-285.45755042,0.00019835,2]
[373467195,1753017087146,-480.0,0.00019835,2]
[373467196,1753017087155,-480.0,0.00019835,2]
[373467197,1753017087165,-480.0,0.00019835,2]
[373467198,1753017087175,-480.0,0.00019835,2]
[373467199,1753017087185,-480.0,0.00019835,2]
[373467200,1753017087194,-611.3,0.00019835,2]
[373467201,1753017087204,-780.54,0.00019835,2]
[373467202,1753017087213,-480.0,0.00019835,2]
[373467203,1753017087222,-480.0,0.00019835,2]
[373467204,1753017087232,-480.0,0.00019835,2]
[373467205,1753017087241,-682.46,0.00019835,2]
[373467206,1753017087251,-480.0,0.00019835,2]
[373467207,1753017087260,-1603.58,0.00019835,2]
[373467208,1753017087269,-151.0,0.00019835,2]
[373467209,1753017087278,-932.82,0.00019835,2]
[373467210,1753017087287,-1481.32,0.00019835,2]
[373467211,1753017087296,-958.44,0.00019835,2]
[373467212,1753017087305,-480.0,0.00019835,2]
[373467213,1753017087315,-480.0,0.00019835,2]
[373467214,1753017087324,-480.0,0.00019835,2]
[373467215,1753017087334,-480.0,0.00019835,2]
[373467216,1753017087343,-577.7,0.00019835,2]
[373467217,1753017087354,-480.0,0.00019835,2]
[373467218,1753017087365,-739.86,0.00019835,2]
[373467219,1753017087375,-649.08,0.00019835,2]
[373467220,1753017087386,-480.0,0.00019835,2]
[373467221,1753017087396,-838.97,0.00019835,2]
[373467222,1753017087405,-513.0,0.00019835,2]
[373467223,1753017087414,-3028.24,0.00019835,2]
[373467224,1753017087424,-565.62,0.00019835,2]
[373467225,1753017087434,-1906.31,0.00019835,2]
[373467226,1753017087443,-853.59,0.00019835,2]
[373467227,1753017087453,-480.0,0.00019835,2]
[373467228,1753017087462,-480.0,0.00019835,2]
[373467229,1753017087471,-480.0,0.00019835,2]
[373467230,1753017087481,-480.0,0.00019835,2]
[373467231,1753017087490,-1696.96,0.00019835,2]
[373467232,1753017087500,-480.0,0.00019835,2]
[373467233,1753017087509,-480.0,0.00019835,2]
[373467234,1753017087519,-480.0,0.00019835,2]
[373467235,1753017087528,-2026.54,0.00019835,2]
[373467236,1753017087538,-981.38,0.00019835,2]
[373467237,1753017087547,-823.88,0.00019835,2]
[373467238,1753017087557,-486.56,0.00019835,2]
[373467239,1753017087566,-480.0,0.00019835,2]
[373467240,1753017087576,-963.41,0.00019835,2]
[373467241,1753017087585,-830.46,0.00019835,2]
[373467242,1753017087595,-480.0,0.00019835,2]
[373467243,1753017087605,-5709.5,0.00019835,2]
[373467244,1753017087614,-569.92,0.00019835,2]
[373467245,1753017087624,-480.0,0.00019835,2]
[373467246,1753017087633,-648.1,0.00019835,2]
[373467247,1753017087643,-1388.48,0.00019835,2]
[373467248,1753017087655,-729.74,0.00019835,2]
[373467249,1753017087664,-480.0,0.00019835,2]
[373467250,1753017087673,-5215.18,0.00019835,2]
[373467251,1753017087683,-155.154919,0.00019835,2]
[373467252,1753017087692,-827.12,0.00019835,2]
[373467253,1753017087702,-1044.1,0.00019835,2]
[373467254,1753017087711,-2977.2,0.00019835,2]
[373467255,1753017087721,-838.71,0.00019835,2]
[373467256,1753017087730,-480.0,0.00019835,2]
[373467257,1753017087740,-151.0,0.00019835,2]
[373467258,1753017087749,-993.38,0.00019835,2]
[373467259,1753017087759,-480.0,0.00019835,2]
[373467260,1753017087772,-738.73,0.00019835,2]
[373467261,1753017087781,-480.0,0.00019835,2]
[373467262,1753017087790,-239.679879,0.00019835,2]
[373467263,1753017087800,-942.6,0.00019835,2]
[373467264,1753017087809,-480.0,0.00019835,2]
[373467265,1753017087820,-480.0,0.00019835,2]
[373467266,1753017087829,-480.0,0.00019835,2]
[373467267,1753017087839,-846.89,0.00019835,2]
[373467268,1753017087850,-480.0,0.00019835,2]
[373467269,1753017087859,-1356.61,0.00019835,2]
[373467270,1753017087869,-1055.73,0.00019835,2]
[373467271,1753017087879,-480.0,0.00019835,2]
[373467272,1753017087888,-1058.94,0.00019835,2]
[373467273,1753017087897,-480.0,0.00019835,2]
[373467274,1753017087907,-480.0,0.00019835,2]
[373467275,1753017087916,-480.0,0.00019835,2]
[373467276,1753017087926,-950.68,0.00019835,2]
[373467277,1753017087935,-517.18,0.00019835,2]
[373467278,1753017087944,-480.0,0.00019835,2]
[373467279,1753017087953,-480.0,0.00019835,2]
[373467280,1753017087962,-2178.9,0.00019835,2]
[373467281,1753017087972,-480.0,0.00019835,2]
[373467282,1753017087981,-947.79,0.00019835,2]
[373467283,1753017087990,-805.2,0.00019835,2]
[373467284,1753017087999,-176.230906,0.00019835,2]
[373467285,1753017088008,-718.39,0.00019835,2]
[373467286,1753017088019,-1183.55,0.00019835,2]
[373467287,1753017088029,-2110.58,0.00019835,2]
[373467288,1753017088038,-480.0,0.00019835,2]
[373467289,1753017088048,-967.68,0.00019835,2]
[373467290,1753017088057,-480.0,0.00019835,2]
[373467291,1753017088067,-480.0,0.00019835,2]
[373467292,1753017088077,-480.0,0.00019835,2]
[373467293,1753017088087,-2353.52,0.00019835,2]
[373467294,1753017088096,-4098.43,0.00019835,2]
[373467295,1753017088106,-1024.32,0.00019835,2]
[373467296,1753017088115,-2123.97,0.00019835,2]
[373467297,1753017088125,-480.0,0.00019835,2]
[373467298,1753017088134,-696.21,0.00019835,2]
[373467299,1753017088144,-625.29,0.00019835,2]
[373467300,1753017088153,-644.66,0.00019835,2]
[373467301,1753017088163,-480.0,0.00019835,2]
[373467302,1753017088172,-577.79,0.00019835,2]
[373467303,1753017088181,-1455.7,0.00019835,2]
[373467304,1753017088190,-4394.04,0.00019835,2]
[373467305,1753017088199,-480.0,0.00019835,2]
[373467306,1753017088208,-151.0,0.00019835,2]
[373467307,1753017088218,-631.76,0.00019835,2]
[373467308,1753017088227,-3043.65,0.00019835,2]
[373467309,1753017088237,-1305.74,0.00019835,2]
[373467310,1753017088247,-480.0,0.00019835,2]
[373467311,1753017088256,-5028.52,0.00019835,2]
[373467312,1753017088267,-151.0,0.00019835,2]
[373467313,1753017088276,-1482.98,0.00019835,2]
[373467314,1753017088285,-480.0,0.00019835,2]
[373467315,1753017088295,-662.54,0.00019835,2]
[373467316,1753017088304,-937.5,0.00019835,2]
[373467317,1753017088313,-480.0,0.00019835,2]
[373467318,1753017088322,-480.0,0.00019835,2]
[373467319,1753017088332,-1222.76,0.00019835,2]
[373467320,1753017088342,-1666.2,0.00019835,2]
[373467321,1753017088352,-480.0,0.00019835,2]
[373467322,1753017088361,-756.17,0.00019835,2]
[373467323,1753017088370,-1645.82,0.00019835,2]
[373467324,1753017088379,-1403.01,0.00019835,2]
[373467325,1753017088388,-541.13,0.00019835,2]
[373467326,1753017088397,-480.0,0.00019835,2]
[373467327,1753017088407,-480.0,0.00019835,2]
[373467328,1753017088416,-480.0,0.00019835,2]
[373467329,1753017088425,-1593.89,0.00019835,2]
[373467330,1753017088435,-480.0,0.00019835,2]
[373467331,1753017088444,-1264.81,0.00019835,2]
[373467332,1753017088454,-602.57,0.00019835,2]
[373467333,1753017088463,-480.0,0.00019835,2]
[373467334,1753017088472,-480.0,0.00019835,2]
[373467335,1753017088482,-628.9,0.00019835,2]
[373467336,1753017088491,-2894.53,0.00019835,2]
[373467337,1753017088501,-1769.9,0.00019835,2]
[373467338,1753017088513,-480.0,0.00019835,2]
[373467339,1753017088522,-1048.92,0.00019835,2]
[373467340,1753017088531,-1096.7,0.00019835,2]
[373467341,1753017088540,-1017.95,0.00019835,2]
[373467342,1753017088550,-1674.97,0.00019835,2]
[373467343,1753017088560,-480.0,0.00019835,2]
[373467344,1753017088569,-1796.0,0.00019835,2]
[373467345,1753017088579,-618.11,0.00019835,2]
[373467346,1753017088588,-3402.31,0.00019835,2]
[373467347,1753017088598,-1540.15,0.00019835,2]
[373467348,1753017088607,-673.18,0.00019835,2]
[373467349,1753017088618,-480.0,0.00019835,2]
[373467350,1753017088628,-3514.33,0.00019835,2]
[373467351,1753017088638,-480.0,0.00019835,2]
[373467352,1753017088648,-1724.33,0.00019835,2]
[373467353,1753017088658,-1323.7,0.00019835,2]
[373467354,1753017088669,-2932.34,0.00019835,2]
[373467355,1753017088678,-900.091736,0.00019835,2]
[373467356,1753017088688,-1852.55,0.00019835,2]
[373467357,1753017088697,-845.83,0.00019835,2]
[373467358,1753017088707,-480.0,0.00019835,2]
[373467359,1753017088717,-1157.0,0.00019835,2]
[373467360,1753017088727,-559.68,0.00019835,2]
[373467361,1753017088738,-480.0,0.00019835,2]
[373467362,1753017088747,-900.091736,0.00019835,2]
[373467363,1753017088757,-671.29,0.00019835,2]
[373467364,1753017088770,-1185.66,0.00019835,2]
[373467365,1753017088780,-1261.2,0.00019835,2]
[373467366,1753017088789,-900.26,0.00019835,2]
[373467367,1753017088799,-480.0,0.00019835,2]
[373467368,1753017088809,-1672.17,0.00019835,2]
[373467369,1753017088819,-151.0,0.00019835,2]
[373467370,1753017088828,-480.0,0.00019835,2]
[373467371,1753017088837,-4413.57,0.00019835,2]
[373467372,1753017089023,-755.77,0.00019835,2]
[373467373,1753017089035,-480.0,0.00019835,2]
[373467374,1753017089045,-722.76,0.00019835,2]
[373467375,1753017089055,-4158.01,0.00019835,2]
[373467376,1753017089065,-2463.68,0.00019835,2]
[373467377,1753017089074,-926.36,0.00019835,2]
[373467378,1753017089083,-313.2,0.00019835,2]
[373467379,1753017089093,-1895.02,0.00019835,2]
[373467380,1753017089103,-758.0,0.00019835,2]
[373467381,1753017089112,-480.0,0.00019835,2]
[373467382,1753017089122,-1614.88,0.00019835,2]
[373467383,1753017089132,-480.0,0.00019835,2]
[373467384,1753017089141,-480.0,0.00019835,2]
[373467385,1753017089151,-2738.51,0.00019835,2]
[373467386,1753017089161,-1019.8,0.00019835,2]
[373467387,1753017089171,-480.0,0.00019835,2]
[373467388,1753017089180,-728.28,0.00019835,2]
[373467389,1753017089189,-549.4,0.00019835,2]
[373467390,1753017089199,-671.87,0.00019835,2]
[373467391,1753017089208,-480.0,0.00019835,2]
[373467392,1753017089218,-2824.54,0.00019835,2]
[373467393,1753017089227,-541.64,0.00019835,2]
[373467394,1753017089237,-5142.63,0.00019835,2]
[373467395,1753017089246,-4422.78,0.00019835,2]
[373467396,1753017089256,-978.7,0.00019835,2]
[373467397,1753017089266,-759.39,0.00019835,2]
[373467398,1753017089276,-5113.01,0.00019835,2]
[373467399,1753017089285,-1685.16,0.00019835,2]
[373467400,1753017089294,-480.0,0.00019835,2]
[373467401,1753017089303,-657.21,0.00019835,2]
[373467402,1753017089313,-983.37,0.00019835,2]
[373467403,1753017089322,-639.545385,0.00019835,2]
[373467404,1753017089332,-1817.04,0.00019835,2]
[373467405,1753017089341,-507.64,0.00019835,2]
[373467406,1753017089351,-601.7,0.00019835,2]
[373467407,1753017089360,-731.23,0.00019835,2]
[373467408,1753017089369,-639.545385,0.00019835,2]
[373467409,1753017089379,-929.57,0.00019835,2]
[373467410,1753017089389,-1000.0,0.00019835,2]
[373467411,1753017089398,-833.88,0.00019835,2]
[373467412,1753017089407,-151.0,0.00019835,2]
[373467413,1753017089417,-12606.02,0.00019835,2]
[373467414,1753017089427,-1549.75,0.00019835,2]
[373467415,1753017089436,-1508.11,0.00019835,2]
[373467416,1753017089446,-1419.97,0.00019835,2]
[373467417,1753017089455,-2260.87,0.00019835,2]
[373467418,1753017089465,-665.1,0.00019835,2]
[373467419,1753017089474,-504.82,0.00019835,2]
[373467420,1753017089483,-800.6,0.00019835,2]
[373467421,1753017089492,-626.65,0.00019835,2]
[373467422,1753017089502,-1744.39,0.00019835,2]
[373467423,1753017089511,-1056.09,0.00019835,2]
[373467424,1753017089523,-480.0,0.00019835,2]
[373467425,1753017089534,-796.56,0.00019835,2]
[373467426,1753017089544,-943.92,0.00019835,2]
[373467427,1753017089554,-752.54,0.00019835,2]
[373467428,1753017089564,-1650.61,0.00019835,2]
[373467429,1753017089574,-788.92,0.00019835,2]
[373467430,1753017089583,-165.681454,0.00019835,2]
[373467431,1753017089593,-168.32362,0.00019835,2]
[373467432,1753017089602,-1127.31,0.00019835,2]
[373467433,1753017089612,-1461.67,0.00019835,2]
[373467434,1753017089621,-986.58,0.00019835,2]
[373467435,1753017089631,-509.14,0.00019835,2]
[373467436,1753017089641,-2098.14,0.00019835,2]
[373467437,1753017089651,-1698.93,0.00019835,2]
[373467438,1753017089660,-1032.49,0.00019835,2]
[373467439,1753017089671,-1313.06,0.00019835,2]
[373467440,1753017089681,-6885.91,0.00019835,2]
[373467441,1753017089691,-179.28878059,0.00019835,2]
[373467442,1753017089700,-2339.59,0.00019835,2]
[373467443,1753017089710,-3053.99,0.00019835,2]
[373467444,1753017089720,-518.46,0.00019835,2]
[373467445,1753017089730,-2127.43,0.00019835,2]
[373467446,1753017089739,-1040.39,0.00019835,2]
[373467447,1753017089749,-2204.23,0.00019835,2]
[373467448,1753017089759,-607.74,0.00019835,2]
[373467449,1753017089774,-3359.94,0.00019835,2]
[373467450,1753017089784,-151.0,0.00019835,2]
[373467451,1753017089794,-38027.73,0.00019835,2]
[373467452,1753017089803,-1367.42,0.00019835,2]
[373467453,1753017089814,-918.24,0.00019835,2]
[373467454,1753017089823,-1323.1,0.00019835,2]
[373467455,1753017089833,-995.02,0.00019835,2]
[373467456,1753017089843,-2240.44,0.00019835,2]
[373467457,1753017089853,-480.0,0.00019835,2]
[373467458,1753017089862,-1236.91,0.00019835,2]
[373467459,1753017089872,-2429.74,0.00019835,2]
[373467460,1753017089881,-2151.22,0.00019835,2]
[373467461,1753017089891,-170.43,0.00019835,2]
[373467462,1753017089901,-1731.22,0.00019835,2]
[373467463,1753017089911,-889.82,0.00019835,2]
[373467464,1753017089920,-2750.09,0.00019835,2]
[373467465,1753017089931,-1271.07,0.00019835,2]
[373467466,1753017089941,-552.5,0.00019835,2]
[373467467,1753017089950,-473.94,0.00019835,2]
[373467468,1753017089960,-1033.03,0.00019835,2]
[373467469,1753017089969,-200.0,0.0001984,2]
[373467470,1753017089979,-182.34353829,0.00019845,4]
[373467471,1753017089988,-182.34353829,0.00019845,4]
[373467472,1753017089998,-182.34353829,0.00019845,4]
[373467473,1753017090007,-182.34353829,0.00019845,4]
[373467474,1753017090018,-182.34353829,0.00019845,4]
[373467475,1753017090028,-182.34353829,0.00019845,4]
[373467476,1753017090038,-182.34353829,0.00019845,4]
[373467477,1753017090047,-182.34353829,0.00019845,4]
[373467478,1753017090056,-182.34353829,0.00019845,4]
[373467479,1753017090066,-182.34353829,0.00019845,4]
[373467480,1753017090076,-182.34353829,0.00019845,4]
[373467481,1753017090086,-182.34353829,0.00019845,4]
[373467482,1753017090096,-182.34353829,0.00019845,4]
[373467483,1753017090106,-182.34353829,0.00019845,4]
[373467484,1753017090115,-182.34353829,0.00019845,4]
[373467485,1753017090124,-182.34353829,0.00019845,4]
[373467486,1753017090134,-182.34353829,0.00019845,4]
[373467487,1753017090144,-182.34353829,0.00019845,4]
[373467488,1753017090154,-182.34353829,0.00019845,4]
[373467489,1753017090164,-182.34,0.00019845,4]
[373467490,1753017090174,-155.17662463,0.00019845,4]
[373467491,1753017090183,-155.17662463,0.00019845,4]
[373467492,1753017090193,-155.17662463,0.00019845,4]
[373467493,1753017090203,-155.17662463,0.00019845,4]
[373467494,1753017090212,-155.17662463,0.00019845,4]
[373467495,1753017090222,-155.17662463,0.00019845,4]
[373467496,1753017090232,-155.17662463,0.00019845,4]
[373467497,1753017090241,-155.17662463,0.00019845,4]
[373467498,1753017090251,-155.17662463,0.00019845,4]
[373467499,1753017090261,-155.17662463,0.00019845,4]
[373467500,1753017090272,-155.17662463,0.00019845,4]
[373467501,1753017090281,-155.17662463,0.00019845,4]
[373467502,1753017090291,-155.17662463,0.00019845,4]
[373467503,1753017090300,-155.17662463,0.00019845,4]
[373467504,1753017090310,-155.17662463,0.00019845,4]
[373467505,1753017090320,-155.17662463,0.00019845,4]
[373467506,1753017090330,-155.17662463,0.00019845,4]
[373467507,1753017090339,-155.17,0.00019845,4]
[373467508,1753017090349,-226.17911926,0.00019845,4]
[373467509,1753017090358,-226.17911926,0.00019845,4]
[373467510,1753017090368,-226.17911926,0.00019845,4]
[373467511,1753017090378,-226.17911926,0.00019845,4]
[373467512,1753017090389,-226.17911926,0.00019845,4]
[373467513,1753017090400,-226.17911926,0.00019845,4]
[373467514,1753017090411,-226.17911926,0.00019845,4]
[373467515,1753017090421,-226.17911926,0.00019845,4]
[373467516,1753017090431,-226.17911926,0.00019845,4]
[373467517,1753017090441,-226.17911926,0.00019845,4]
[373467518,1753017090450,-226.17911926,0.00019845,4]
[373467519,1753017090460,-226.17911926,0.00019845,4]
[373467520,1753017090471,-226.17911926,0.00019845,4]
[373467521,1753017090481,-226.17911926,0.00019845,4]
[373467522,1753017090492,-226.17911926,0.00019845,4]
[373467523,1753017090502,-226.17911926,0.00019845,4]
[373467524,1753017090511,-226.17911926,0.00019845,4]
[373467525,1753017090522,-226.17911926,0.00019845,4]
[373467526,1753017090532,-226.17911926,0.00019845,4]
[373467527,1753017090542,-226.17,0.00019845,4]
[373467528,1753017090552,-242.0,0.00019854,2]
[373467529,1753017090564,-605.4073947,0.00019857,2]
[373467530,1753017090574,-150.0,0.00019894,2]
[373467531,1753017090586,-2590.67,0.000199,2]
[373467532,1753017090596,-500.0,0.00019921,2]
[373467533,1753017090606,-502.28007366,0.00019921,2]
[373467534,1753017090617,-165.35404274,0.00019921,2]
[373467535,1753017090627,-500.0,0.00019921,2]
[373467536,1753017090637,-500.0,0.00019921,2]
[373467537,1753017090648,-491.30075095,0.00019921,2]
[373467538,1753017090658,-382.80051107,0.00019921,2]
[373467539,1753017090667,-1000.0,0.00019921,2]
[373467540,1753017090676,-500.0,0.00019921,2]
[373467541,1753017090686,-1000.0,0.00019921,2]
[373467542,1753017090695,-501.60948311,0.00019921,2]
[373467543,1753017090704,-500.0,0.00019921,2]
[373467544,1753017090714,-648.12,0.00019944,2]
[373467545,1753017090724,-480.0,0.00019945,2]
[373467546,1753017090733,-480.0,0.00019945,2]
[373467547,1753017090743,-531.67,0.00019945,2]
[373467548,1753017090752,-480.0,0.00019945,2]
[373467549,1753017090761,-150.0,0.00019945,2]
[373467550,1753017090774,-480.0,0.00019945,2]
[373467551,1753017090784,-150.0,0.00019945,2]
[373467552,1753017090793,-480.0,0.00019945,2]
[373467553,1753017090803,-522.76,0.00019945,2]
[373467554,1753017090813,-486.31,0.00019945,2]
[373467555,1753017090822,-151.0,0.00019945,2]
[373467556,1753017090831,-151.0,0.00019945,2]
[373467557,1753017090840,-151.0,0.00019945,2]
[373467558,1753017090854,-480.0,0.00019945,2]
[373467559,1753017090864,-908.756426,0.00019945,2]
[373467560,1753017090875,-480.0,0.00019945,2]
[373467561,1753017090884,-151.0,0.00019945,2]
[373467562,1753017090893,-151.0,0.00019945,2]
[373467563,1753017090902,-480.0,0.00019945,2]
[373467564,1753017090911,-151.0,0.00019945,2]
[373467565,1753017090921,-1096.031062,0.00019945,2]
[373467566,1753017090930,-1078.6235,0.00019945,2]
[373467567,1753017090941,-479.28093182,0.00019945,2]
[373467568,1753017090950,-151.0,0.00019945,2]
[373467569,1753017090960,-151.0,0.00019945,2]
[373467570,1753017090969,-480.0,0.00019945,2]
[373467571,1753017090978,-480.0,0.00019945,2]
[373467572,1753017090988,-151.0,0.00019945,2]
[373467573,1753017090997,-151.0,0.00019945,2]
[373467574,1753017091007,-480.0,0.00019945,2]
[373467575,1753017091016,-151.0,0.00019945,2]
[373467576,1753017091026,-151.0,0.00019945,2]
[373467577,1753017091035,-402.12186882,0.00019945,2]